Workbook

Sheet Light measurements
B2: 33 (L6) | C2: 25 (L5) | D2: 14 (L2) | E2: 12 (L1) | F2: 13 (B2) | G2: 4 (R2) | H2: 16 (R3) | I2: 5 (R5) | J2: 18 (R6) | K2: 19 (R7) | L2: 21 (R9)
A3: off | B3: 0 | C3: 3.3 | D3: 0 | E3: 0 | F3: 3.3 | G3: 0 | H3: 3.3 | I3: 3.3 | J3: 3.3 | K3: 3.3 | L3: 3.3
A4: red low | B4: 3.3 | C4: 3.3 | D4: 3.3 | E4: 0 | F4: 2.95 | G4: 3.3 | H4: 3.3 | I4: 3.3 | J4: 3.3 | K4: 3.3 | L4: 3.3
A5: red medium | B5: 3.3 | C5: 3.3 | D5: 3.3 | E5: 0 | F5: 1.31 | G5: 3.3 | H5: 3.3 | I5: 3.3 | J5: 3.3 | K5: 3.3 | L5: 3.3
A6: red high | B6: 3.3 | C6: 3.3 | D6: 3.3 | E6: 0 | F6: 0.01 | G6: 3.3 | H6: 3.3 | I6: 3.3 | J6: 3.3 | K6: 3.3 | L6: 3.3
A7: green low | B7: 3.3 | C7: 3.3 | D7: 2.86 | E7: 0 | F7: 3.13 | G7: 3.3 | H7: 3.3 | I7: 3.3 | J7: 3.3 | K7: 3.3 | L7: 3.3
A8: green high | B8: 3.3 | C8: 3.3 | D8: 0.01 | E8: 0 | F8: 3.3 | G8: 3.3 | H8: 3.3 | I8: 3.3 | J8: 3.3 | K8: 3.3 | L8: 3.3
A9: blue low | B9: 3.3 | C9: 3.3 | D9: 3.3 | E9: 0 | F9: 3.3 | G9: 3.3 | H9: 3.3 | I9: 2.95 | J9: 3.3 | K9: 3.3 | L9: 3.3
A10: blue high | B10: 3.3 | C10: 3.3 | D10: 3.3 | E10: 0 | F10: 3.3 | G10: 3.3 | H10: 3.3 | I10: 0.01 | J10: 3.3 | K10: 3.3 | L10: 3.3
A12: GPIO13 | B12: RED
A13: GPIO14 | B13: GREEN
A14: GPIO5 | B14: BLUE
A16: GPIO33 | B16: ENABLE
A17: GPIO4 | B17: ENABLE? Power front buttons?
B19: 33 (L6) | C19: 25 (L5) | D19: 14 (L2) | E19: 12 (L1) | F19: 13 (B2) | G19: 4 (R2) | H19: 16 (R3) | I19: 5 (R5) | J19: 18 (R6) | K19: 19 (R7) | L19: 21 (R9)
A20: off | B20: 0 | C20: 3.3 | D20: 0 | E20: 0 | F20: 3.3 | G20: 0 | H20: 3.3 | I20: 3.3 | J20: 3.3 | K20: 3.3 | L20: 3.3
A21: white warm high | B21: 3.3 | C21: 3.3 | D21: 1.13 | E21: 0.22 | F21: 0.01 | G21: 3.3 | H21: 3.3 | I21: 3.3 | J21: 3.3 | K21: 3.3 | L21: 3.3
A22: white warm medium | B22: 3.3 | C22: 3.3 | D22: 2.06 | E22: 0.2 | F22: 1.45 | G22: 3.3 | H22: 3.3 | I22: 3.3 | J22: 3.3 | K22: 3.3 | L22: 3.3
A23: white warm low | B23: 3.3 | C23: 3.3 | D23: 2.97 | E23: 0.19 | F23: 2.86 | G23: 3.3 | H23: 3.3 | I23: 3.3 | J23: 3.3 | K23: 3.3 | L23: 3.3
A24: white cold high | B24: 3.3 | C24: 3.3 | D24: 0.01 | E24: 1.1 | F24: 3.3 | G24: 3.3 | H24: 3.3 | I24: 0.62 | J24: 3.3 | K24: 3.3 | L24: 3.3
A25: white cold medium | B25: 3.3 | C25: 3.3 | D25: 1.45 | E25: 0.69 | F25: 3.3 | G25: 3.3 | H25: 3.3 | I25: 1.78 | J25: 3.3 | K25: 3.3 | L25: 3.3
A26: white cold low | B26: 3.3 | C26: 3.3 | D26: 2.86 | E26: 0.28 | F26: 3.3 | G26: 3.3 | H26: 3.3 | I26: 2.92 | J26: 3.3 | K26: 3.3 | L26: 3.3
A27: white mix high | B27: 3.3 | C27: 3.3 | D27: 0.88 | E27: 2.51 | F27: 3.3 | G27: 3.3 | H27: 3.3 | I27: 1.59 | J27: 3.3 | K27: 3.3 | L27: 3.3
A28: white mix low | B28: 3.3 | C28: 3.3 | D28: 2.95 | E28: 0.42 | F28: 3.3 | G28: 3.3 | H28: 3.3 | I28: 3.02 | J28: 3.3 | K28: 3.3 | L28: 3.3
A30: GPIO12 | B30: BRIGHTNESS?
A31: GPIO13 | B31: WHITE WARM LEVEL
A32: GPIO5 | B32: WHITE COLD LEVEL
A33: GPIO14 | B33: SOME KIND OF MIX
B35: 33 (L6) | C35: 25 (L5) | D35: 14 (L2) | E35: 12 (L1) | F35: 13 (B2) | G35: 4 (R2) | H35: 16 (R3) | I35: 5 (R5) | J35: 18 (R6) | K35: 19 (R7) | L35: 21 (R9)
A36: off | B36: 0 | C36: 3.3 | D36: 0 | E36: 0 | F36: 3.3 | G36: 0 | H36: 3.3 | I36: 3.3 | J36: 3.3 | K36: 3.3 | L36: 3.3
A37: night mode | B37: 3.3 | C37: 3.3 | D37: 3.14 | E37: 0 | F37: 3.14 | G37: 3.3 | H37: 3.3 | I37: 3.18 | J37: 3.3 | K37: 3.3 | L37: 3.3
A39: RGB mode with a little bit of brightness on the RGB channels.

Sheet Detailed RGB
A1: R | B1: G | C1: B | D1: Brightness | E1: Red 13 (B2) | F1: Green 14 (L2) | G1: Blue 5 (R5) | N1: R | O1: G | P1: B | Q1: Brightness | R1: Red 13 (B2) | S1: Green 14 (L2) | T1: Blue 5 (R5)
A2: 255 | B2: 0 | C2: 0 | D2: 1 | E2: 2.95 | F2: 3.27 | G2: 3.27 | N2: 255 | O2: 128 | P2: 0 | Q2: 1 | R2: 2.86 | S2: 2.93 | T2: 3.17
D3: 25 | E3: 2.71 | F3: 3.27 | G3: 3.27 | Q3: 25 | R3: 2.63 | S3: 2.76 | T3: 3.17
D4: 50 | E4: 2.41 | F4: 3.27 | G4: 3.27 | Q4: 50 | R4: 2.34 | S4: 2.53 | T4: 3.16
D5: 75 | E5: 2.12 | F5: 3.27 | G5: 3.27 | Q5: 75 | R5: 2.05 | S5: 2.32 | T5: 3.15
D6: 90 | E6: 1.94 | F6: 3.27 | G6: 3.27 | Q6: 100 | R6: 1.77 | S6: 2.1 | T6: 3.15
D7: 100 | E7: 1.82 | F7: 3.27 | G7: 3.27 | Q7: 255 | R7: 0.01 | S7: 0.78 | T7: 3.12
D8: 255 | E8: 0.01 | F8: 3.27 | G8: 3.27
A16: R | B16: G | C16: B | D16: Brightness | E16: Red 13 (B2) | F16: Green 14 (L2) | G16: Blue 5 (R5) | N16: R | O16: G | P16: B | Q16: Brightness | R16: Red 13 (B2) | S16: Green 14 (L2) | T16: Blue 5 (R5)
A17: 255 | B17: 255 | C17: 0 | D17: 1 | E17: 3.04 | F17: 2.86 | G17: 3.17 | N17: 255 | O17: 0 | P17: 128 | Q17: 1 | R17: 2.86 | S17: 3.12 | T17: 3.1
D18: 25 | E18: 2.93 | F18: 2.63 | G18: 3.17 | Q18: 25 | R18: 2.63 | S18: 3.09 | T18: 3.04
D19: 50 | E19: 2.81 | F19: 2.34 | G19: 3.17 | Q19: 50 | R19: 2.34 | S19: 3.04 | T19: 2.97
D20: 75 | E20: 2.68 | F20: 2.05 | G20: 3.16 | Q20: 75 | R20: 2.05 | S20: 2.99 | T20: 2.9
D21: 100 | E21: 2.56 | F21: 1.77 | G21: 3.16 | Q21: 100 | R21: 1.77 | S21: 2.94 | T21: 2.84
D22: 255 | E22: 1.78 | F22: 0.01 | G22: 3.14 | Q22: 255 | R22: 0.01 | S22: 2.67 | T22: 2.42
A30: R | B30: G | C30: B | D30: Brightness | E30: Red 13 (B2) | F30: Green 14 (L2) | G30: Blue 5 (R5) | N30: R | O30: G | P30: B | Q30: Brightness | R30: Red 13 (B2) | S30: Green 14 (L2) | T30: Blue 5 (R5)
A31: 255 | B31: 255 | C31: 255 | D31: 1 | E31: 3.04 | F31: 2.86 | G31: 3.07 | N31: 255 | O31: 128 | P31: 128 | Q31: 1 | R31: 2.86 | S31: 2.93 | T31: 3.1
D32: 25 | E32: 2.94 | F32: 2.63 | G32: 3 | Q32: 25 | R32: 2.63 | S32: 2.76 | T32: 3.05
D33: 50 | E33: 2.81 | F33: 2.34 | G33: 2.91 | Q33: 50 | R33: 2.34 | S33: 2.54 | T33: 2.99
D34: 75 | E34: 2.69 | F34: 2.05 | G34: 2.82 | Q34: 75 | R34: 2.05 | S34: 2.32 | T34: 2.93
D35: 100 | E35: 2.56 | F35: 1.77 | G35: 2.73 | Q35: 100 | R35: 1.77 | S35: 2.1 | T35: 2.86
D36: 255 | E36: 1.79 | F36: 0.01 | G36: 2.16 | Q36: 255 | R36: 0.01 | S36: 0.76 | T36: 2.47
A44: R | B44: G | C44: B | D44: Brightness | E44: Red 13 (B2) | F44: Green 14 (L2) | G44: Blue 5 (R5) | N44: R | O44: G | P44: B | Q44: Brightness | R44: Red 13 (B2) | S44: Green 14 (L2) | T44: Blue 5 (R5)
A45: 0 | B45: 255 | C45: 0 | D45: 1 | E45: 3.27 | F45: 2.95 | G45: 3.27 | N45: 128 | O45: 255 | P45: 0 | Q45: 1 | R45: 3.11 | S45: 2.86 | T45: 3.17
D46: 25 | E46: 3.27 | F46: 2.71 | G46: 3.27 | Q46: 25 | R46: 3.06 | S46: 2.62 | T46: 3.17
D47: 50 | E47: 3.27 | F47: 2.41 | G47: 3.27 | Q47: 50 | R47: 3 | S47: 2.34 | T47: 3.16
D48: 75 | E48: 3.27 | F48: 2.11 | G48: 3.27 | Q48: 75 | R48: 2.94 | S48: 2.05 | T48: 3.16
D49: 100 | E49: 3.27 | F49: 1.82 | G49: 3.27 | Q49: 100 | R49: 2.87 | S49: 1.76 | T49: 3.16
D50: 255 | E50: 3.27 | F50: 0.01 | G50: 3.27 | Q50: 255 | R50: 2.51 | S50: 0.01 | T50: 3.15
A58: R | B58: G | C58: B | D58: Brightness | E58: Red 13 (B2) | F58: Green 14 (L2) | G58: Blue 5 (R5) | N58: R | O58: G | P58: B | Q58: Brightness | R58: Red 13 (B2) | S58: Green 14 (L2) | T58: Blue 5 (R5)
A59: 0 | B59: 255 | C59: 255 | D59: 1 | E59: 3.13 | F59: 2.86 | G59: 3.07 | N59: 255 | O59: 128 | P59: 255 | Q59: 1 | R59: 2.86 | S59: 2.93 | T59: 2.87
D60: 25 | E60: 3.1 | F60: 2.63 | G60: 3 | Q60: 25 | R60: 2.62 | S60: 2.74 | T60: 2.65
D61: 50 | E61: 3.05 | F61: 2.34 | G61: 2.9 | Q61: 50 | R61: 2.34 | S61: 2.52 | T61: 2.37
D62: 75 | E62: 3.01 | F62: 2.05 | G62: 2.8 | Q62: 75 | R62: 2.05 | S62: 2.29 | T62: 2.09
D63: 100 | E63: 2.97 | F63: 1.76 | G63: 2.71 | Q63: 100 | R63: 1.76 | S63: 2.06 | T63: 1.8
D64: 255 | E64: 2.71 | F64: 0.01 | G64: 2.12 | Q64: 255 | R64: 0.01 | S64: 0.67 | T64: 0.09
A72: R | B72: G | C72: B | D72: Brightness | E72: Red 13 (B2) | F72: Green 14 (L2) | G72: Blue 5 (R5) | N72: R | O72: G | P72: B | Q72: Brightness | R72: Red 13 (B2) | S72: Green 14 (L2) | T72: Blue 5 (R5)
A73: 0 | B73: 0 | C73: 255 | D73: 1 | E73: 3.27 | F73: 3.27 | G73: 2.95 | N73: 128 | O73: 255 | P73: 128 | Q73: 1 | R73: 3.11 | S73: 2.86 | T73: 3.15
D74: 25 | E74: 3.27 | F74: 3.27 | G74: 2.71 | Q74: 25 | R74: 3.06 | S74: 2.63 | T74: 3.14
D75: 50 | E75: 3.27 | F75: 3.27 | G75: 2.42 | Q75: 50 | R75: 3 | S75: 2.34 | T75: 3.11
D76: 75 | E76: 3.27 | F76: 3.27 | G76: 2.12 | Q76: 75 | R76: 2.94 | S76: 2.05 | T76: 3.09
D77: 100 | E77: 3.27 | F77: 3.27 | G77: 1.82 | Q77: 90 | R77: 2.9 | S77: 1.88 | T77: 3.08
D78: 255 | E78: 3.27 | F78: 3.27 | G78: 0.01 | Q78: 100 | R78: 2.88 | S78: 1.77 | T78: 3.07
Q79: 255 | R79: 2.51 | S79: 0.01 | T79: 2.93
A86: R | B86: G | C86: B | D86: Brightness | E86: Red 13 (B2) | F86: Green 14 (L2) | G86: Blue 5 (R5)
A87: 255 | B87: 0 | C87: 255 | D87: 1 | E87: 2.88 | F87: 3.12 | G87: 2.86
D88: 25 | E88: 2.66 | F88: 3.08 | G88: 2.63
D89: 50 | E89: 2.39 | F89: 3.03 | G89: 2.35
D90: 75 | E90: 2.12 | F90: 2.98 | G90: 2.06
D91: 100 | E91: 1.85 | F91: 2.92 | G91: 1.77
D92: 255 | E92: 0.19 | F92: 2.61 | G92: 0.01
D95: :

Sheet Detailed R
A1: Brightness 1 | B1: red | C1: green | D1: red V | M1: Brightness 255 | N1: red | O1: green | P1: red V
B2: 255 | C2: 0 | D2: 2.95 | N2: 255 | O2: 0 | P2: 0.01
B3: 255 | C3: 10 | D3: 2.95 | N3: 255 | O3: 10 | P3: 0.01
B4: 255 | C4: 20 | D4: 2.95 | N4: 255 | O4: 20 | P4: 0.01
B5: 255 | C5: 30 | D5: 2.95 | N5: 255 | O5: 30 | P5: 0.01
B6: 255 | C6: 32 | D6: 2.95 | N6: 255 | O6: 32 | P6: 0.01
B7: 255 | C7: 34 | D7: 2.95 | N7: 255 | O7: 34 | P7: 0.01
B8: 255 | C8: 36 | D8: 2.95 | N8: 255 | O8: 36 | P8: 0.01
B9: 255 | C9: 37 | D9: 2.86 | N9: 255 | O9: 37 | P9: 0.01
B10: 255 | C10: 38 | D10: 2.86 | N10: 255 | O10: 38 | P10: 0.01
B11: 255 | C11: 40 | D11: 2.86 | N11: 255 | O11: 40 | P11: 0.01
B12: 255 | C12: 50 | D12: 2.86 | N12: 255 | O12: 50 | P12: 0.01
B13: 255 | C13: 100 | D13: 2.86 | N13: 255 | O13: 140 | P13: 0.01
B14: 255 | C14: 110 | D14: 2.86 | N14: 255 | O14: 150 | P14: 0.01
B15: 255 | C15: 120 | D15: 2.86 | N15: 255 | O15: 152 | P15: 0.05
B16: 255 | C16: 130 | D16: 2.86 | N16: 255 | O16: 155 | P16: 0.05
B17: 255 | C17: 140 | D17: 2.86 | N17: 255 | O17: 157 | P17: 0.18
B18: 255 | C18: 150 | D18: 2.86 | N18: 255 | O18: 159 | P18: 0.19
B19: 255 | C19: 160 | D19: 2.89 | N19: 255 | O19: 160 | P19: 0.3
B20: 255 | C20: 170 | D20: 2.91 | N20: 255 | O20: 170 | P20: 0.54
B21: 255 | C21: 180 | D21: 2.93 | N21: 255 | O21: 180 | P21: 0.73
B22: 255 | C22: 190 | D22: 2.96 | N22: 255 | O22: 190 | P22: 0.99
B23: 255 | C23: 200 | D23: 2.97 | N23: 255 | O23: 200 | P23: 1.13
B24: 255 | C24: 210 | D24: 2.99 | N24: 255 | O24: 210 | P24: 1.27
B25: 255 | C25: 220 | D25: 3 | N25: 255 | O25: 220 | P25: 1.44
B26: 255 | C26: 230 | D26: 3.01 | N26: 255 | O26: 230 | P26: 1.53
B27: 255 | C27: 240 | D27: 3.02 | N27: 255 | O27: 240 | P27: 1.63
B28: 255 | C28: 255 | D28: 3.04 | N28: 255 | O28: 255 | P28: 1.78
A30: Brightness 1 | B30: red | C30: blue | D30: red V | M30: Brightness 255 | N30: red | O30: blue | P30: red V
B31: 255 | C31: 0 | D31: 2.95 | N31: 255 | O31: 0 | P31: 0.01
B32: 255 | C32: 10 | D32: 2.95 | N32: 255 | O32: 10 | P32: 0.01
B33: 255 | C33: 20 | D33: 2.95 | N33: 255 | O33: 27 | P33: 0.01
B34: 255 | C34: 30 | D34: 2.86 | N34: 255 | O34: 28 | P34: 0.01
B35: 255 | C35: 32 | D35: 2.86 | N35: 255 | O35: 30 | P35: 0.01
B36: 255 | C36: 34 | D36: 2.86 | N36: 255 | O36: 34 | P36: 0.01
B37: 255 | C37: 36 | D37: 2.86 | N37: 255 | O37: 150 | P37: 0.01
B38: 255 | C38: 37 | D38: 2.86 | N38: 255 | O38: 160 | P38: 0.01
B39: 255 | C39: 38 | D39: 2.86 | N39: 255 | O39: 170 | P39: 0.01
B40: 255 | C40: 40 | D40: 2.86 | N40: 255 | O40: 180 | P40: 0.01
B41: 255 | C41: 50 | D41: 2.86 | N41: 255 | O41: 190 | P41: 0.01
B42: 255 | C42: 100 | D42: 2.86 | N42: 255 | O42: 200 | P42: 0.01
B43: 255 | C43: 110 | D43: 2.86 | N43: 255 | O43: 210 | P43: 0.01
B44: 255 | C44: 120 | D44: 2.86 | N44: 255 | O44: 220 | P44: 0.01
B45: 255 | C45: 130 | D45: 2.86 | N45: 255 | O45: 230 | P45: 0.01
B46: 255 | C46: 140 | D46: 2.86 | N46: 255 | O46: 240 | P46: 0.01
B47: 255 | C47: 150 | D47: 2.86 | N47: 255 | O47: 245 | P47: 0.01
B48: 255 | C48: 160 | D48: 2.86 | N48: 255 | O48: 246 | P48: 0.01
B49: 255 | C49: 170 | D49: 2.86 | N49: 255 | O49: 247 | P49: 0.01
B50: 255 | C50: 180 | D50: 2.86 | N50: 255 | O50: 248 | P50: 0.01
B51: 255 | C51: 190 | D51: 2.86 | N51: 255 | O51: 249 | P51: 0.01
B52: 255 | C52: 200 | D52: 2.86 | N52: 255 | O52: 250 | P52: 0.06
B53: 255 | C53: 210 | D53: 2.86 | N53: 255 | O53: 251 | P53: 0.06
B54: 255 | C54: 220 | D54: 2.86 | N54: 255 | O54: 252 | P54: 0.06
B55: 255 | C55: 253 | D55: 2.87 | N55: 255 | O55: 253 | P55: 0.2
B56: 255 | C56: 254 | D56: 2.88 | N56: 255 | O56: 254 | P56: 0.2
B57: 255 | C57: 255 | D57: 2.88 | N57: 255 | O57: 255 | P57: 0.2
A59: Brightness 1 | B59: red | C59: green+blue | D59: red V | M59: Brightness 255 | N59: red | O59: green+blue | P59: red V | Q59: compare green | R59: diff
B60: 255 | C60: 0 | D60: 2.95 | N60: 255 | O60: 0 | P60: 0.01 | Q60: 0.01 | R60: =P60-Q60 -> 0
B61: 255 | C61: 10 | D61: 2.95 | N61: 255 | O61: 10 | P61: 0.01 | Q61: 0.01 | R61: =P61-Q61 -> 0
B62: 255 | C62: 19 | D62: 2.95 | N62: 255 | O62: 20 | P62: 0.01 | Q62: 0.01 | R62: =P62-Q62 -> 0
B63: 255 | C63: 20 | D63: 2.86 | N63: 255 | O63: 30 | P63: 0.01 | Q63: 0.01 | R63: =P63-Q63 -> 0
B64: 255 | C64: 30 | D64: 2.86 | N64: 255 | O64: 32 | P64: 0.01 | Q64: 0.01 | R64: =P64-Q64 -> 0
B65: 255 | C65: 34 | D65: 2.86 | N65: 255 | O65: 34 | P65: 0.01 | Q65: 0.01 | R65: =P65-Q65 -> 0
B66: 255 | C66: 36 | D66: 2.86 | N66: 255 | O66: 36 | P66: 0.01 | Q66: 0.01 | R66: =P66-Q66 -> 0
B67: 255 | C67: 37 | D67: 2.86 | N67: 255 | O67: 37 | P67: 0.01 | Q67: 0.01 | R67: =P67-Q67 -> 0
B68: 255 | C68: 38 | D68: 2.86 | N68: 255 | O68: 38 | P68: 0.01 | Q68: 0.01 | R68: =P68-Q68 -> 0
B69: 255 | C69: 40 | D69: 2.86 | N69: 255 | O69: 40 | P69: 0.01 | Q69: 0.01 | R69: =P69-Q69 -> 0
B70: 255 | C70: 50 | D70: 2.86 | N70: 255 | O70: 50 | P70: 0.01 | Q70: 0.01 | R70: =P70-Q70 -> 0
B71: 255 | C71: 100 | D71: 2.86 | N71: 255 | O71: 140 | P71: 0.01 | Q71: 0.01 | R71: =P71-Q71 -> 0
B72: 255 | C72: 120 | D72: 2.86 | N72: 255 | O72: 150 | P72: 0.01 | Q72: 0.01 | R72: =P72-Q72 -> 0
B73: 255 | C73: 130 | D73: 2.86 | N73: 255 | O73: 152 | P73: 0.09 | Q73: 0.05 | R73: =P73-Q73 -> 0.04
B74: 255 | C74: 140 | D74: 2.86 | N74: 255 | O74: 155 | P74: 0.15 | Q74: 0.05 | R74: =P74-Q74 -> 0.1
B75: 255 | C75: 150 | D75: 2.86 | N75: 255 | O75: 157 | P75: 0.24 | Q75: 0.18 | R75: =P75-Q75 -> 0.06
B76: 255 | C76: 155 | D76: 2.87 | N76: 255 | O76: 159 | P76: 0.24 | Q76: 0.19 | R76: =P76-Q76 -> 0.05
B77: 255 | C77: 158 | D77: 2.88 | N77: 255 | O77: 160 | P77: 0.3 | Q77: 0.3 | R77: =P77-Q77 -> 0
B78: 255 | C78: 160 | D78: 2.89 | N78: 255 | O78: 170 | P78: 0.57 | Q78: 0.54 | R78: =P78-Q78 -> 0.03
B79: 255 | C79: 170 | D79: 2.91 | N79: 255 | O79: 180 | P79: 0.82 | Q79: 0.73 | R79: =P79-Q79 -> 0.09
B80: 255 | C80: 180 | D80: 2.94 | N80: 255 | O80: 190 | P80: 1.02 | Q80: 0.99 | R80: =P80-Q80 -> 0.03
B81: 255 | C81: 190 | D81: 2.96 | N81: 255 | O81: 200 | P81: 1.14 | Q81: 1.13 | R81: =P81-Q81 -> 0.01
B82: 255 | C82: 200 | D82: 2.97 | N82: 255 | O82: 210 | P82: 1.31 | Q82: 1.27 | R82: =P82-Q82 -> 0.04
B83: 255 | C83: 230 | D83: 3.01 | N83: 255 | O83: 220 | P83: 1.44 | Q83: 1.44 | R83: =P83-Q83 -> 0
B84: 255 | C84: 240 | D84: 3.02 | N84: 255 | O84: 230 | P84: 1.55 | Q84: 1.53 | R84: =P84-Q84 -> 0.02
B85: 255 | C85: 250 | D85: 3.03 | N85: 255 | O85: 240 | P85: 1.66 | Q85: 1.63 | R85: =P85-Q85 -> 0.03
B86: 255 | C86: 255 | D86: 3.03 | N86: 255 | O86: 255 | P86: 1.79 | Q86: 1.78 | R86: =P86-Q86 -> 0.01

Sheet Detailed G
A1: Brightness 1 | B1: green | C1: red | D1: green V | M1: Brightness 255 | N1: green | O1: red | P1: green V
B2: 255 | C2: 0 | D2: 2.94 | N2: 255 | O2: 0 | P2: 0.01
B3: 255 | C3: 1 | D3: 2.88 | N3: 255 | O3: 1 | P3: 0.01
B4: 255 | C4: 5 | D4: 2.88 | N4: 255 | O4: 20 | P4: 0.01
B5: 255 | C5: 10 | D5: 2.88 | N5: 255 | O5: 30 | P5: 0.01
B6: 255 | C6: 20 | D6: 2.88 | N6: 255 | O6: 32 | P6: 0.01
B7: 255 | C7: 30 | D7: 2.88 | N7: 255 | O7: 34 | P7: 0.01
B8: 255 | C8: 40 | D8: 2.88 | N8: 255 | O8: 36 | P8: 0.01
B9: 255 | C9: 45 | D9: 2.88 | N9: 255 | O9: 37 | P9: 0.01
B10: 255 | C10: 48 | D10: 2.88 | N10: 255 | O10: 38 | P10: 0.01
B11: 255 | C11: 49 | D11: 2.8 | N11: 255 | O11: 40 | P11: 0.01
B12: 255 | C12: 50 | D12: 2.8 | N12: 255 | O12: 50 | P12: 0.01
B13: 255 | C13: 100 | D13: 2.8 | N13: 255 | O13: 140 | P13: 0.01
B14: 255 | C14: 110 | D14: 2.8 | N14: 255 | O14: 150 | P14: 0.01
B15: 255 | C15: 120 | D15: 2.8 | N15: 255 | O15: 152 | P15: 0.01
B16: 255 | C16: 130 | D16: 2.8 | N16: 255 | O16: 155 | P16: 0.01
B17: 255 | C17: 140 | D17: 2.8 | N17: 255 | O17: 157 | P17: 0.01
B18: 255 | C18: 150 | D18: 2.8 | N18: 255 | O18: 159 | P18: 0.01
B19: 255 | C19: 160 | D19: 2.8 | N19: 255 | O19: 160 | P19: 0.01
B20: 255 | C20: 170 | D20: 2.8 | N20: 255 | O20: 170 | P20: 0.01
B21: 255 | C21: 180 | D21: 2.8 | N21: 255 | O21: 180 | P21: 0.01
B22: 255 | C22: 190 | D22: 2.8 | N22: 255 | O22: 190 | P22: 0.01
B23: 255 | C23: 200 | D23: 2.8 | N23: 255 | O23: 200 | P23: 0.01
B24: 255 | C24: 210 | D24: 2.8 | N24: 255 | O24: 210 | P24: 0.01
B25: 255 | C25: 220 | D25: 2.8 | N25: 255 | O25: 220 | P25: 0.01
B26: 255 | C26: 230 | D26: 2.8 | N26: 255 | O26: 230 | P26: 0.01
B27: 255 | C27: 240 | D27: 2.8 | N27: 255 | O27: 240 | P27: 0.01
B28: 255 | C28: 255 | D28: 2.8 | N28: 255 | O28: 255 | P28: 0.01
A30: Brightness 1 | B30: green | C30: blue | D30: green V | M30: Brightness 255 | N30: green | O30: blue | P30: green V
B31: 255 | C31: 0 | D31: 2.94 | N31: 255 | O31: 0 | P31: 0.01
B32: 255 | C32: 1 | D32: 2.94 | N32: 255 | O32: 10 | P32: 0.01
B33: 255 | C33: 10 | D33: 2.94 | N33: 255 | O33: 27 | P33: 0.01
B34: 255 | C34: 15 | D34: 2.94 | N34: 255 | O34: 28 | P34: 0.01
B35: 255 | C35: 20 | D35: 2.94 | N35: 255 | O35: 30 | P35: 0.01
B36: 255 | C36: 21 | D36: 2.94 | N36: 255 | O36: 34 | P36: 0.01
B37: 255 | C37: 23 | D37: 2.94 | N37: 255 | O37: 150 | P37: 0.01
B38: 255 | C38: 24 | D38: 2.86 | N38: 255 | O38: 160 | P38: 0.01
B39: 255 | C39: 50 | D39: 2.86 | N39: 255 | O39: 170 | P39: 0.01
B40: 255 | C40: 70 | D40: 2.86 | N40: 255 | O40: 180 | P40: 0.01
B41: 255 | C41: 100 | D41: 2.86 | N41: 255 | O41: 190 | P41: 0.01
B42: 255 | C42: 110 | D42: 2.86 | N42: 255 | O42: 200 | P42: 0.01
B43: 255 | C43: 120 | D43: 2.86 | N43: 255 | O43: 210 | P43: 0.01
B44: 255 | C44: 150 | D44: 2.86 | N44: 255 | O44: 220 | P44: 0.01
B45: 255 | C45: 200 | D45: 2.86 | N45: 255 | O45: 230 | P45: 0.01
B46: 255 | C46: 210 | D46: 2.86 | N46: 255 | O46: 240 | P46: 0.01
B47: 255 | C47: 220 | D47: 2.86 | N47: 255 | O47: 245 | P47: 0.01
B48: 255 | C48: 230 | D48: 2.86 | N48: 255 | O48: 246 | P48: 0.01
B49: 255 | C49: 240 | D49: 2.86 | N49: 255 | O49: 247 | P49: 0.01
B50: 255 | C50: 245 | D50: 2.86 | N50: 255 | O50: 248 | P50: 0.01
B51: 255 | C51: 249 | D51: 2.86 | N51: 255 | O51: 249 | P51: 0.01
B52: 255 | C52: 250 | D52: 2.86 | N52: 255 | O52: 250 | P52: 0.01
B53: 255 | C53: 251 | D53: 2.86 | N53: 255 | O53: 251 | P53: 0.01
B54: 255 | C54: 252 | D54: 2.86 | N54: 255 | O54: 252 | P54: 0.01
B55: 255 | C55: 253 | D55: 2.86 | N55: 255 | O55: 253 | P55: 0.01
B56: 255 | C56: 254 | D56: 2.86 | N56: 255 | O56: 254 | P56: 0.01
B57: 255 | C57: 255 | D57: 2.86 | N57: 255 | O57: 255 | P57: 0.01
A59: Brightness 1 | B59: green | C59: red+blue | D59: green V | M59: Brightness 255 | N59: green | O59: red+blue | P59: green V
B60: 255 | C60: 0 | D60: 2.94 | N60: 255 | O60: 0 | P60: 0.01
B61: 255 | C61: 10 | D61: 2.94 | N61: 255 | O61: 10 | P61: 0.01
B62: 255 | C62: 19 | D62: 2.94 | N62: 255 | O62: 20 | P62: 0.01
B63: 255 | C63: 21 | D63: 2.94 | N63: 255 | O63: 30 | P63: 0.01
B64: 255 | C64: 22 | D64: 2.86 | N64: 255 | O64: 32 | P64: 0.01
B65: 255 | C65: 34 | D65: 2.86 | N65: 255 | O65: 34 | P65: 0.01
B66: 255 | C66: 36 | D66: 2.86 | N66: 255 | O66: 36 | P66: 0.01
B67: 255 | C67: 37 | D67: 2.86 | N67: 255 | O67: 37 | P67: 0.01
B68: 255 | C68: 38 | D68: 2.86 | N68: 255 | O68: 38 | P68: 0.01
B69: 255 | C69: 40 | D69: 2.86 | N69: 255 | O69: 40 | P69: 0.01
B70: 255 | C70: 50 | D70: 2.86 | N70: 255 | O70: 50 | P70: 0.01
B71: 255 | C71: 100 | D71: 2.86 | N71: 255 | O71: 140 | P71: 0.01
B72: 255 | C72: 120 | D72: 2.86 | N72: 255 | O72: 150 | P72: 0.01
B73: 255 | C73: 130 | D73: 2.86 | N73: 255 | O73: 152 | P73: 0.01
B74: 255 | C74: 140 | D74: 2.86 | N74: 255 | O74: 155 | P74: 0.01
B75: 255 | C75: 150 | D75: 2.86 | N75: 255 | O75: 157 | P75: 0.01
B76: 255 | C76: 155 | D76: 2.86 | N76: 255 | O76: 159 | P76: 0.01
B77: 255 | C77: 158 | D77: 2.86 | N77: 255 | O77: 160 | P77: 0.01
B78: 255 | C78: 160 | D78: 2.86 | N78: 255 | O78: 170 | P78: 0.01
B79: 255 | C79: 170 | D79: 2.86 | N79: 255 | O79: 180 | P79: 0.01
B80: 255 | C80: 180 | D80: 2.86 | N80: 255 | O80: 190 | P80: 0.01
B81: 255 | C81: 190 | D81: 2.86 | N81: 255 | O81: 200 | P81: 0.01
B82: 255 | C82: 200 | D82: 2.86 | N82: 255 | O82: 210 | P82: 0.01
B83: 255 | C83: 230 | D83: 2.86 | N83: 255 | O83: 220 | P83: 0.01
B84: 255 | C84: 240 | D84: 2.86 | N84: 255 | O84: 230 | P84: 0.01
B85: 255 | C85: 250 | D85: 2.86 | N85: 255 | O85: 240 | P85: 0.01
B86: 255 | C86: 255 | D86: 2.86 | N86: 255 | O86: 255 | P86: 0.01

Sheet Detailed B
A1: Brightness 1 | B1: blue | C1: red | D1: blue V | M1: Brightness 255 | N1: blue | O1: red | P1: blue V
B2: 255 | C2: 0 | D2: 2.95 | N2: 255 | O2: 0 | P2: 0.01
B3: 255 | C3: 1 | D3: 2.95 | N3: 255 | O3: 1 | P3: 0.01
B4: 255 | C4: 5 | D4: 2.95 | N4: 255 | O4: 20 | P4: 0.01
B5: 255 | C5: 10 | D5: 2.95 | N5: 255 | O5: 30 | P5: 0.01
B6: 255 | C6: 20 | D6: 2.95 | N6: 255 | O6: 32 | P6: 0.01
B7: 255 | C7: 30 | D7: 2.95 | N7: 255 | O7: 34 | P7: 0.01
B8: 255 | C8: 40 | D8: 2.95 | N8: 255 | O8: 36 | P8: 0.01
B9: 255 | C9: 45 | D9: 2.95 | N9: 255 | O9: 37 | P9: 0.01
B10: 255 | C10: 48 | D10: 2.95 | N10: 255 | O10: 38 | P10: 0.01
B11: 255 | C11: 50 | D11: 2.95 | N11: 255 | O11: 40 | P11: 0.01
B12: 255 | C12: 57 | D12: 2.95 | N12: 255 | O12: 50 | P12: 0.01
B13: 255 | C13: 58 | D13: 2.86 | N13: 255 | O13: 140 | P13: 0.01
B14: 255 | C14: 80 | D14: 2.86 | N14: 255 | O14: 150 | P14: 0.01
B15: 255 | C15: 120 | D15: 2.86 | N15: 255 | O15: 152 | P15: 0.01
B16: 255 | C16: 130 | D16: 2.86 | N16: 255 | O16: 155 | P16: 0.01
B17: 255 | C17: 140 | D17: 2.86 | N17: 255 | O17: 157 | P17: 0.01
B18: 255 | C18: 150 | D18: 2.86 | N18: 255 | O18: 159 | P18: 0.01
B19: 255 | C19: 160 | D19: 2.86 | N19: 255 | O19: 160 | P19: 0.01
B20: 255 | C20: 170 | D20: 2.86 | N20: 255 | O20: 170 | P20: 0.01
B21: 255 | C21: 180 | D21: 2.86 | N21: 255 | O21: 180 | P21: 0.01
B22: 255 | C22: 190 | D22: 2.86 | N22: 255 | O22: 190 | P22: 0.01
B23: 255 | C23: 200 | D23: 2.86 | N23: 255 | O23: 200 | P23: 0.01
B24: 255 | C24: 210 | D24: 2.86 | N24: 255 | O24: 210 | P24: 0.01
B25: 255 | C25: 220 | D25: 2.86 | N25: 255 | O25: 220 | P25: 0.01
B26: 255 | C26: 230 | D26: 2.86 | N26: 255 | O26: 230 | P26: 0.01
B27: 255 | C27: 240 | D27: 2.86 | N27: 255 | O27: 240 | P27: 0.01
B28: 255 | C28: 255 | D28: 2.86 | N28: 255 | O28: 255 | P28: 0.01
A30: Brightness 1 | B30: blue | C30: green | D30: blue V | M30: Brightness 255 | N30: blue | O30: green | P30: blue V
B31: 255 | C31: 0 | D31: 2.95 | N31: 255 | O31: 0 | P31: 0.01
B32: 255 | C32: 1 | D32: 2.95 | N32: 255 | O32: 1 | P32: 0.01
B33: 255 | C33: 20 | D33: 2.95 | N33: 255 | O33: 100 | P33: 0.01
B34: 255 | C34: 28 | D34: 2.95 | N34: 255 | O34: 150 | P34: 0.01
B35: 255 | C35: 30 | D35: 2.95 | N35: 255 | O35: 156 | P35: 0.2
B36: 255 | C36: 30 | D36: 2.95 | N36: 255 | O36: 157 | P36: 0.17
B37: 255 | C37: 23 | D37: 2.95 | N37: 255 | O37: 159 | P37: 0.18
B38: 255 | C38: 36 | D38: 2.95 | N38: 255 | O38: 160 | P38: 0.33
B39: 255 | C39: 37 | D39: 2.86 | N39: 255 | O39: 170 | P39: 0.63
B40: 255 | C40: 70 | D40: 2.86 | N40: 255 | O40: 180 | P40: 0.87
B41: 255 | C41: 100 | D41: 2.86 | N41: 255 | O41: 190 | P41: 1.2
B42: 255 | C42: 150 | D42: 2.86 | N42: 255 | O42: 200 | P42: 1.36
B43: 255 | C43: 170 | D43: 2.92 | N43: 255 | O43: 210 | P43: 1.53
B44: 255 | C44: 175 | D44: 2.94 | N44: 255 | O44: 220 | P44: 1.73
B45: 255 | C45: 178 | D45: 2.95 | N45: 255 | O45: 230 | P45: 1.85
B46: 255 | C46: 180 | D46: 2.95 | N46: 255 | O46: 240 | P46: 1.96
B47: 255 | C47: 185 | D47: 2.97 | N47: 255 | O47: 245 | P47: 2.03
B48: 255 | C48: 190 | D48: 2.98 | N48: 255 | O48: 246 | P48: 2.03
B49: 255 | C49: 200 | D49: 2.99 | N49: 255 | O49: 247 | P49: 2.03
B50: 255 | C50: 220 | D50: 3.03 | N50: 255 | O50: 248 | P50: 2.03
B51: 255 | C51: 230 | D51: 3.04 | N51: 255 | O51: 249 | P51: 2.07
B52: 255 | C52: 240 | D52: 3.05 | N52: 255 | O52: 250 | P52: 2.07
B53: 255 | C53: 250 | D53: 3.07 | N53: 255 | O53: 251 | P53: 2.07
B54: 255 | C54: 252 | D54: 3.07 | N54: 255 | O54: 252 | P54: 2.08
B55: 255 | C55: 253 | D55: 3.07 | N55: 255 | O55: 253 | P55: 2.12
B56: 255 | C56: 254 | D56: 3.07 | N56: 255 | O56: 254 | P56: 2.12
B57: 255 | C57: 255 | D57: 3.07 | N57: 255 | O57: 255 | P57: 2.12
A59: Brightness 1 | B59: blue | C59: red+green | D59: blue V | M59: Brightness 255 | N59: blue | O59: red+green | P59: blue V
B60: 255 | C60: 0 | D60: 2.95 | N60: 255 | O60: 0 | P60: 0.01
B61: 255 | C61: 1 | D61: 2.95 | N61: 255 | O61: 10
B62: 255 | C62: 20 | D62: 2.95 | N62: 255 | O62: 20
B63: 255 | C63: 21 | D63: 2.95 | N63: 255 | O63: 30
B64: 255 | C64: 31 | D64: 2.95 | N64: 255 | O64: 32
B65: 255 | C65: 32 | D65: 2.86 | N65: 255 | O65: 34
B66: 255 | C66: 36 | D66: 2.86 | N66: 255 | O66: 36
B67: 255 | C67: 37 | D67: 2.86 | N67: 255 | O67: 37
B68: 255 | C68: 38 | D68: 2.86 | N68: 255 | O68: 38
B69: 255 | C69: 40 | D69: 2.86 | N69: 255 | O69: 40
B70: 255 | C70: 50 | D70: 2.86 | N70: 255 | O70: 50
B71: 255 | C71: 100 | D71: 2.86 | N71: 255 | O71: 140
B72: 255 | C72: 120 | D72: 2.86 | N72: 255 | O72: 150
B73: 255 | C73: 130 | D73: 2.86 | N73: 255 | O73: 152
B74: 255 | C74: 140 | D74: 2.86 | N74: 255 | O74: 155
B75: 255 | C75: 150 | D75: 2.86 | N75: 255 | O75: 157
B76: 255 | C76: 152 | D76: 2.87 | N76: 255 | O76: 159
B77: 255 | C77: 155 | D77: 2.88 | N77: 255 | O77: 160
B78: 255 | C78: 160 | D78: 2.9 | N78: 255 | O78: 170
B79: 255 | C79: 170 | D79: 2.93 | N79: 255 | O79: 180
B80: 255 | C80: 200 | D80: 3 | N80: 255 | O80: 190
B81: 255 | C81: 210 | D81: 3.02 | N81: 255 | O81: 200
B82: 255 | C82: 220 | D82: 3.03 | N82: 255 | O82: 210
B83: 255 | C83: 230 | D83: 3.05 | N83: 255 | O83: 220
B84: 255 | C84: 240 | D84: 3.06 | N84: 255 | O84: 230
B85: 255 | C85: 250 | D85: 3.07 | N85: 255 | O85: 240
B86: 255 | C86: 255 | D86: 3.07 | N86: 255 | O86: 255

Sheet Detailed white light
D1: Green | E1: White | F1: Red | G1: Blue | N1: Brightness 1 | T1: Brightness 100
B2: HA temperature | C2: brightness | D2: GPIO14 | E2: GPIO12 | F2: GPIO13 | G2: GPIO5 | N2: temperature | O2: GPIO14 | P2: GPIO12 | Q2: GPIO13 | R2: GPIO5 | T2: temperature | U2: GPIO14 | V2: GPIO12 | W2: GPIO13 | X2: GPIO5
A3: 100% warm | B3: =B131 -> 588 | C3: 1 | D3: 2.97 | E3: 0.19 | F3: 2.86 | G3: 3.28 | N3: =B3 -> 588 | O3: =D3 -> 2.97 | P3: =E3 -> 0.19 | Q3: =F3 -> 2.86 | R3: =G3 -> 3.28 | T3: 588 | U3: =D13 -> 1.13 | V3: =E13 -> 0.22 | W3: =F13 -> 0.01 | X3: =G13 -> 3.28
B4: =(B3-$B$132)/($B$131-$B$132) -> 1 | C4: 10 | D4: 2.8 | E4: 0.2 | F4: 2.6 | G4: 3.28 | N4: =B16 -> 479 | O4: =D16 -> 2.94 | P4: =E16 -> 0.2 | Q4: =F16 -> 2.86 | R4: =G16 -> 3.28 | T4: 479 | U4: =D26 -> 0.78 | V4: =E26 -> 0.3 | W4: =F26 -> 0 | X4: =G26 -> 3.28
C5: 20 | D5: 2.64 | E5: 0.2 | F5: 2.34 | G5: 3.28 | N5: =B29 -> 420 | O5: =D29 -> 2.92 | P5: =E29 -> 0.21 | Q5: =F29 -> 2.86 | R5: =G29 -> 3.27 | T5: 420 | U5: =D30 -> 0.61 | V5: =E30 -> 0.39 | W5: =F30 -> 0 | X5: =G30 -> 3.28
C6: 30 | D6: 2.43 | E6: 0.2 | F6: 2.02 | G6: 3.28 | N6: 371 | O6: =D33 -> 2.9 | P6: =E33 -> 0.28 | Q6: =F33 -> 2.86 | R6: =G33 -> 3.28 | T6: 371 | U6: =D43 -> 0.45 | V6: =E43 -> 1.07 | W6: =F43 -> 0 | X6: =G43 -> 3.28
C7: 40 | D7: 2.24 | E7: 0.2 | F7: 1.73 | G7: 3.28
C8: 50 | D8: 2.06 | E8: 0.2 | F8: 1.44 | G8: 3.28
C9: 60 | D9: 1.87 | E9: 0.21 | F9: 1.16 | G9: 3.28
C10: 70 | D10: 1.69 | E10: 0.21 | F10: 0.87 | G10: 3.28
C11: 80 | D11: 1.5 | E11: 0.21 | F11: 0.58 | G11: 3.28
C12: 90 | D12: 1.32 | E12: 0.21 | F12: 0.29 | G12: 3.28
C13: 100 | D13: 1.13 | E13: 0.22 | F13: 0.01 | G13: 3.28
D14: Green | E14: White | F14: Red | G14: Blue
B15: HA temperature | C15: brightness | D15: GPIO14 | E15: GPIO12 | F15: GPIO13 | G15: GPIO5
A16: 75% warm | B16: =ROUND($B131-$B133,0) -> 479 | C16: 1 | D16: 2.94 | E16: 0.2 | F16: 2.86 | G16: 3.28
B17: =(B16-$B$132)/($B$131-$B$132) -> 0.7494252874 | C17: 10 | D17: 2.74 | E17: 0.21 | F17: 2.6 | G17: 3.28
C18: 20 | D18: 2.52 | E18: 0.22 | F18: 2.31 | G18: 3.28
C19: 30 | D19: 2.32 | E19: 0.23 | F19: 2.05 | G19: 3.28
C20: 40 | D20: 2.09 | E20: 0.24 | F20: 1.73 | G20: 3.28
C21: 50 | D21: 1.87 | E21: 0.25 | F21: 1.44 | G21: 3.28
C22: 60 | D22: 1.65 | E22: 0.26 | F22: 1.16 | G22: 3.28
C23: 70 | D23: 1.46 | E23: 0.26 | F23: 0.9 | G23: 3.28
C24: 80 | D24: 1.22 | E24: 0.28 | F24: 0.58 | G24: 3.28
C25: 90 | D25: 1 | E25: 0.29 | F25: 0.29 | G25: 3.28
C26: 100 | D26: 0.78 | E26: 0.3 | F26: 0 | G26: 3.28
D27: Green | E27: White | F27: Red | G27: Blue
B28: HA temperature | C28: brightness | D28: GPIO14 | E28: GPIO12 | F28: GPIO13 | G28: GPIO5
B29: 420 | C29: 1 | D29: 2.92 | E29: 0.21 | F29: 2.86 | G29: 3.27
B30: =(B29-$B$132)/($B$131-$B$132) -> 0.6137931034 | C30: 100 | D30: 0.61 | E30: 0.39 | F30: 0 | G30: 3.28
D31: Green | E31: White | F31: Red | G31: Blue
B32: HA temperature | C32: brightness | D32: GPIO14 | E32: GPIO12 | F32: GPIO13 | G32: GPIO5
A33: 50% warm | B33: =ROUND($B131-2*$B133,0) -> 371 | C33: 1 | D33: 2.9 | E33: 0.28 | F33: 2.86 | G33: 3.28
B34: =(B33-$B$132)/($B$131-$B$132) -> 0.5011494253 | C34: 10 | D34: 2.68 | E34: 0.35 | F34: 2.6 | G34: 3.28
C35: 20 | D35: 2.43 | E35: 0.43 | F35: 2.31 | G35: 3.28
C36: 30 | D36: 2.21 | E36: 0.5 | F36: 2.05 | G36: 3.28
C37: 40 | D37: 1.93 | E37: 0.59 | F37: 1.73 | G37: 3.28
C38: 50 | D38: 1.69 | E38: 0.67 | F38: 1.45 | G38: 3.28
C39: 60 | D39: 1.44 | E39: 0.75 | F39: 1.16 | G39: 3.28
C40: 70 | D40: 1.22 | E40: 0.82 | F40: 0.9 | G40: 3.28
C41: 80 | D41: 0.94 | E41: 0.91 | F41: 0.58 | G41: 3.28
C42: 90 | D42: 0.69 | E42: 0.99 | F42: 0.29 | G42: 3.28
C43: 100 | D43: 0.45 | E43: 1.07 | F43: 0 | G43: 3.28
D44: Green | E44: White | F44: Red | G44: Blue
B45: HA temperature | C45: brightness | D45: GPIO14 | E45: GPIO12 | F45: GPIO13 | G45: GPIO5
B46: 370 | C46: 1 | D46: 2.9 | E46: 0.28 | F46: 2.86 | G46: 3.28
B47: =(B46-$B$132)/($B$131-$B$132) -> 0.4988505747 | C47: 100 | D47: 0.45 | E47: 1.07 | F47: 0 | G47: 3.28
D48: Green | E48: White | F48: Red | G48: Blue
B49: HA temperature | C49: brightness | D49: GPIO14 | E49: GPIO12 | F49: GPIO13 | G49: GPIO5
B50: 334 | C50: 1 | D50: 2.9 | E50: 0.28 | F50: 2.86 | G50: 3.28
B51: =(B50-$B$132)/($B$131-$B$132) -> 0.416091954 | C51: 100 | D51: 0.45 | E51: 1.07 | F51: 0 | G51: 3.28
D52: Green | E52: White | F52: Red | G52: Blue
B53: HA temperature | C53: brightness | D53: GPIO14 | E53: GPIO12 | F53: GPIO13 | G53: GPIO5
B54: 333 | C54: 1 | D54: 2.96 | E54: 0.42 | F54: 2.89 | G54: 3.28
B55: =(B54-$B$132)/($B$131-$B$132) -> 0.4137931034 | C55: 100 | D55: 1.03 | E55: 2.43 | F55: 0.32 | G55: 3.28
D56: Green | E56: White | F56: Red | G56: Blue
B57: HA temperature | C57: brightness | D57: GPIO14 | E57: GPIO12 | F57: GPIO13 | G57: GPIO5
B58: 313 | C58: 1 | D58: 2.96 | E58: 0.42 | F58: 2.89 | G58: 3.28
B59: =(B58-$B$132)/($B$131-$B$132) -> 0.367816092 | C59: 100 | D59: 1.03 | E59: 2.43 | F59: 0.32 | G59: 3.28
D60: Green | E60: White | F60: Red | G60: Blue
B61: HA temperature | C61: brightness | D61: GPIO14 | E61: GPIO12 | F61: GPIO13 | G61: GPIO5
B62: 312 | C62: 1 | D62: 3.27 | E62: 0.5 | F62: 3.27 | G62: 3.27
B63: =(B62-$B$132)/($B$131-$B$132) -> 0.3655172414 | C63: 100 | D63: 3.27 | E63: 3.29 | F63: 3.27 | G63: 3.27
D64: Green | E64: White | F64: Red | G64: Blue
B65: HA temperature | C65: brightness | D65: GPIO14 | E65: GPIO12 | F65: GPIO13 | G65: GPIO5
A66: 30% warm | B66: 284 | C66: 1 | D66: 3.27 | E66: 0.5 | F66: 3.27 | G66: 3.28
B67: =(B66-$B$132)/($B$131-$B$132) -> 0.3011494253 | C67: 10 | D67: 3.27 | E67: 0.75 | F67: 3.27 | G67: 3.28
C68: 20 | D68: 3.27 | E68: 1.03 | F68: 3.27 | G68: 3.28
C69: 30 | D69: 3.27 | E69: 1.31 | F69: 3.27 | G69: 3.28
C70: 40 | D70: 3.27 | E70: 1.59 | F70: 3.27 | G70: 3.28
C71: 50 | D71: 3.27 | E71: 1.88 | F71: 3.27 | G71: 3.28
C72: 60 | D72: 3.27 | E72: 2.16 | F72: 3.27 | G72: 3.28
C73: 70 | D73: 3.27 | E73: 2.44 | F73: 3.27 | G73: 3.28
C74: 80 | D74: 3.27 | E74: 2.72 | F74: 3.27 | G74: 3.28
C75: 90 | D75: 3.27 | E75: 3 | F75: 3.27 | G75: 3.28
C76: 100 | D76: 3.27 | E76: 3.28 | F76: 3.27 | G76: 3.28
D77: Green | E77: White | F77: Red | G77: Blue
B78: HA temperature | C78: brightness | D78: GPIO14 | E78: GPIO12 | F78: GPIO13 | G78: GPIO5
A79: 25% warm | B79: =ROUND($B131-3*$B133,0) -> 262 | C79: 1 | D79: 3.27 | E79: 0.5 | F79: 3.27 | G79: 3.27
B80: =(B79-$B$132)/($B$131-$B$132) -> 0.2505747126 | C80: 10 | D80: 3.27 | E80: 0.75 | F80: 3.27 | G80: 3.27
C81: 20 | D81: 3.27 | E81: 1.03 | F81: 3.27 | G81: 3.27
C82: 30 | D82: 3.27 | E82: 1.29 | F82: 3.27 | G82: 3.27
C83: 40 | D83: 3.27 | E83: 1.6 | F83: 3.27 | G83: 3.27
C84: 50 | D84: 3.27 | E84: 1.88 | F84: 3.27 | G84: 3.27
C85: 60 | D85: 3.27 | E85: 2.16 | F85: 3.27 | G85: 3.27
C86: 70 | D86: 3.27 | E86: 2.41 | F86: 3.27 | G86: 3.27
C87: 80 | D87: 3.27 | E87: 2.72 | F87: 3.27 | G87: 3.27
C88: 90 | D88: 3.27 | E88: 3 | F88: 3.27 | G88: 3.27
C89: 100 | D89: 3.27 | E89: 3.29 | F89: 3.27 | G89: 3.27
D90: Green | E90: White | F90: Red | G90: Blue
B91: HA temperature | C91: brightness | D91: GPIO14 | E91: GPIO12 | F91: GPIO13 | G91: GPIO5
B92: 251 | C92: 1 | D92: 3.27 | E92: 0.5 | F92: 3.27 | G92: 3.27
B93: =(B92-$B$132)/($B$131-$B$132) -> 0.2252873563 | C93: 100 | D93: 3.27 | E93: 3.29 | F93: 3.27 | G93: 3.27
D95: Green | E95: White | F95: Red | G95: Blue
B96: HA temperature | C96: brightness | D96: GPIO14 | E96: GPIO12 | F96: GPIO13 | G96: GPIO5
B97: 250 | C97: 1 | D97: 2.94 | E97: 0.42 | F97: 3.27 | G97: 3.02
B98: =(B97-$B$132)/($B$131-$B$132) -> 0.2229885057 | C98: 100 | D98: 0.88 | E98: 2.51 | F98: 3.27 | G98: 1.59
D99: Green | E99: White | F99: Red | G99: Blue
B100: HA temperature | C100: brightness | D100: GPIO14 | E100: GPIO12 | F100: GPIO13 | G100: GPIO5
B101: =ROUND(4.36 * 20 +B118,0) -> 240 | C101: 1 | D101: 2.94 | E101: 0.42 | F101: 3.27 | G101: 3.02
B102: =(B101-$B$132)/($B$131-$B$132) -> 0.2 | C102: 50 | D102: 1.92 | E102: 1.46 | F102: 3.27 | G102: 2.31
C103: 100 | D103: 0.88 | E103: 2.51 | F103: 3.27 | G103: 1.59
D104: Green | E104: White | F104: Red | G104: Blue
B105: HA temperature | C105: brightness | D105: GPIO14 | E105: GPIO12 | F105: GPIO13 | G105: GPIO5
B106: 223 | C106: 1 | D106: 2.94 | E106: 0.42 | F106: 3.27 | G106: 3.02
B107: =(B106-$B$132)/($B$131-$B$132) -> 0.1609195402 | C107: 100 | D107: 0.88 | E107: 2.51 | F107: 3.27 | G107: 1.59
D108: Green | E108: White | F108: Red | G108: Blue
B109: HA temperature | C109: brightness | D109: GPIO14 | E109: GPIO12 | F109: GPIO13 | G109: GPIO5
B110: 222 | C110: 1 | D110: 2.86 | E110: 0.37 | F110: 3.28 | G110: 2.97
B111: =(B110-$B$132)/($B$131-$B$132) -> 0.1586206897 | C111: 100 | D111: 0.01 | E111: 2 | F111: 3.28 | G111: 1.17
D112: Green | E112: White | F112: Red | G112: Blue
B113: HA temperature | C113: brightness | D113: GPIO14 | E113: GPIO12 | F113: GPIO13 | G113: GPIO5
B114: 187 | C114: 1 | D114: 2.86 | E114: 0.33 | F114: 3.27 | G114: 2.95
B115: =(B114-$B$132)/($B$131-$B$132) -> 0.07816091954 | C115: 100 | D115: 0 | E115: 1.6 | F115: 3.27 | G115: 0.92
D116: Green | E116: White | F116: Red | G116: Blue
B117: HA temperature | C117: brightness | D117: GPIO14 | E117: GPIO12 | F117: GPIO13 | G117: GPIO5
A118: 0% warm | B118: =B132 -> 153 | C118: 1 | D118: 2.86 | E118: 0.28 | F118: 3.27 | G118: 2.92
B119: =(B118-$B$132)/($B$131-$B$132) -> 0 | C119: 10 | D119: 2.6 | E119: 0.36 | F119: 3.27 | G119: 2.71
C120: 20 | D120: 2.31 | E120: 0.44 | F120: 3.27 | G120: 2.48
C121: 30 | D121: 2.05 | E121: 0.51 | F121: 3.27 | G121: 2.27
C122: 40 | D122: 1.73 | E122: 0.6 | F122: 3.27 | G122: 2.02
C123: 50 | D123: 1.44 | E123: 0.69 | F123: 3.27 | G123: 1.78
C124: 60 | D124: 1.16 | E124: 0.77 | F124: 3.27 | G124: 1.55
C125: 70 | D125: 0.9 | E125: 0.84 | F125: 3.27 | G125: 1.34
C126: 80 | D126: 0.58 | E126: 0.93 | F126: 3.27 | G126: 1.08
C127: 90 | D127: 0.3 | E127: 1.01 | F127: 3.27 | G127: 0.85
C128: 100 | D128: 0 | E128: 1.1 | F128: 3.27 | G128: 0.62
A130: Home Assistant color temperature
A131: max temp | B131: 588
A132: min temp | B132: 153
A133: temp per 25% change | B133: =(B131-B132)/4 -> 108.75

Sheet ESPHome brightness to power
A1: These measurements show the brightness to GPIO power mapping in ESPHome’s RGBWW light component.
A3: brightness | B3: brightness float | C3: power float
A4: 1 | B4: 0.011765 | C4: 4e-06
A5: 19 | B5: 0.188235 | C5: 0.009315
A6: 20 | B6: 0.2 | C6: 0.011038 | D6: ← first level at which the light is visible
A7: 30 | B7: 0.298039 | C7: 0.033726
A8: 40 | B8: 0.4 | C8: 0.076872
A9: 50 | B9: 0.501961 | C9: 0.14517
A10: 60 | B10: 0.6 | C10: 0.239234
A11: 70 | B11: 0.698039 | C11: 0.36548
A12: 80 | B12: 0.8 | C12: 0.535367
A13: 90 | B13: 0.901961 | C13: 0.749075
A14: 100 | B14: 1 | C14: 1
A16: ESPhome translates the brightness to the required GPIO power using a non-linear function.
A17: That is fine, but not useful for our case. We need a linear translation.
A18: Therefore, I’ll provide a custom scaling function in the firmware.

Sheet GPIO14
A1: Brightness = 1
A3: temperature | B3: GPIO14
A4: ='Detailed white light'!B3 -> 588 | B4: ='Detailed white light'!D3 -> 2.97
A5: ='Detailed white light'!B16 -> 479 | B5: ='Detailed white light'!D16 -> 2.94
A6: ='Detailed white light'!B29 -> 420 | B6: ='Detailed white light'!D29 -> 2.92
A7: ='Detailed white light'!B33 -> 371 | B7: ='Detailed white light'!D33 -> 2.9
A8: ='Detailed white light'!B46 -> 370 | B8: ='Detailed white light'!D46 -> 2.9
A9: ='Detailed white light'!B50 -> 334 | B9: ='Detailed white light'!D50 -> 2.9
A10: ='Detailed white light'!B54 -> 333 | B10: ='Detailed white light'!D54 -> 2.96
A11: ='Detailed white light'!B58 -> 313 | B11: ='Detailed white light'!D58 -> 2.96
A12: ='Detailed white light'!B62 -> 312 | B12: ='Detailed white light'!D62 -> 3.27
A13: ='Detailed white light'!B66 -> 284 | B13: ='Detailed white light'!D66 -> 3.27
A14: ='Detailed white light'!B79 -> 262 | B14: ='Detailed white light'!D79 -> 3.27
A15: ='Detailed white light'!B92 -> 251 | B15: ='Detailed white light'!D92 -> 3.27
A16: ='Detailed white light'!B97 -> 250 | B16: ='Detailed white light'!D97 -> 2.94
A17: ='Detailed white light'!B101 -> 240 | B17: ='Detailed white light'!D101 -> 2.94
A18: ='Detailed white light'!B106 -> 223 | B18: ='Detailed white light'!D106 -> 2.94
A19: ='Detailed white light'!B110 -> 222 | B19: ='Detailed white light'!D110 -> 2.86
A20: ='Detailed white light'!B114 -> 187 | B20: ='Detailed white light'!D114 -> 2.86
A21: ='Detailed white light'!B118 -> 153 | B21: ='Detailed white light'!D118 -> 2.86
